bitfinex/quotes_ETHUSD_20250115
["timestamp","ask_amount","ask_price","bid_price","bid_amount"]
[1736977902536,0.173,3439.5,3438.8,2.90798]
[1736977903235,0.7557,3439.6,3438.7,1.19905512]
[1736977903443,0.373114,3440.1,3439.4,0.8299]
[1736977903444,0.173,3439.5,3439.4,0.8299]
[1736977903921,0.173,3439.5,3439.3,3.0]
[1736977904326,0.173,3439.5,3439.4,0.04992408]
[1736977906174,0.173,3439.5,3439.4,0.04387001]
[1736977908921,0.173,3439.5,3439.2,5.38554576]
[1736977909146,2.90662,3440.5,3439.5,3.8299]
[1736977909346,0.173,3440.4,3439.7,5.90721]
[1736977909547,0.173,3440.3,3439.7,5.90721]
[1736977909845,0.173,3440.3,3439.9,5.38554576]
[1736977910316,0.173,3440.3,3440.0,0.04758166]
[1736977911227,0.7557,3440.6,3440.0,0.04758166]
[1736977911427,0.173,3440.5,3440.0,0.04758166]
[1736977913034,0.8201,3440.1,3440.0,0.04758166]
[1736977913554,2.90676,3440.3,3439.9,5.38554576]
[1736977913868,0.173,3440.1,3439.9,5.38554576]
[1736977914023,0.173,3440.1,3440.0,0.04691291]
[1736977914542,3.89999,3440.1,3440.0,0.04691291]
[1736977914736,4.289989,3440.1,3440.0,0.04691291]
[1736977915546,4.289989,3440.1,3439.4,5.38554576]
[1736977915773,3.89999,3440.1,3440.0,0.04708328]
[1736977915977,3.89999,3440.1,3439.4,5.38554576]
[1736977916182,3.89999,3440.1,3440.0,0.04708328]
[1736977916326,3.89999,3440.1,3439.4,5.38554576]
[1736977916639,3.89999,3440.1,3439.5,0.04737715]
[1736977917028,0.9931,3440.1,3439.5,0.04737715]
[1736977917366,0.8201,3440.5,3439.5,0.04737715]
[1736977917671,0.173,3440.0,3439.5,0.04737715]
[1736977918178,0.173,3440.0,3439.5,3.04737715]
[1736977920070,0.173,3440.0,3439.6,0.7928]
[1736977920473,0.173,3440.0,3439.7,0.04725959]
[1736977920637,0.173,3439.9,3439.7,0.04725959]
[1736977921590,2.90658,3440.5,3439.7,0.04725959]
[1736977921771,0.173,3439.8,3439.7,0.04725959]
[1736977922179,2.9064,3440.7,3439.7,0.04725959]
[1736977922350,0.173,3440.6,3439.7,0.04725959]
[1736977922543,3.07948,3440.6,3439.7,0.04725959]
[1736977922792,3.760066,3440.6,3439.7,0.04725959]
[1736977923093,3.07948,3440.6,3439.7,3.04725959]
[1736977923251,3.07948,3440.6,3439.7,0.04725959]
[1736977923588,3.07948,3440.6,3439.7,2.95445959]
[1736977924392,3.07948,3440.6,3439.8,3.0]
[1736977924593,3.07948,3440.6,3439.8,3.04723489]
[1736977925891,0.173,3440.6,3439.8,3.04723489]
[1736977926096,2.90657,3440.5,3439.8,3.04723489]
[1736977926265,3.72674,3440.4,3439.8,3.04723489]
[1736977926809,0.307957,3440.5,3439.8,3.04723489]
[1736977927026,0.8201,3440.7,3439.8,5.95435489]
[1736977927291,0.173,3440.6,3440.1,6.69961]
[1736977927596,0.173,3440.5,3440.3,3.0]
[1736977927954,0.173,3440.5,3440.4,0.0468184]
[1736977930815,0.173,3440.5,3440.3,2.90671]
[1736977930955,2.094,3441.2,3440.5,0.7928]
[1736977931303,0.173,3441.1,3440.6,3.0]
[1736977931504,0.173,3441.1,3440.6,3.04670091]
[1736977932068,0.173,3441.1,3440.7,0.7928]
[1736977932513,0.173,3441.1,3440.8,2.9525398]
[1736977932718,0.173,3441.0,3440.9,0.67453398]
[1736977932878,0.173,3441.0,3440.8,0.0462598]
[1736977933077,0.173,3441.0,3440.9,0.04620107]
[1736977933334,2.094,3441.2,3441.1,3.0]
[1736977933533,2.094,3441.2,3441.1,9.52002908]
[1736977933534,2.267,3441.2,3441.1,9.52002908]
[1736977934439,2.267,3441.2,3441.1,3.83888361]
[1736977934656,2.267,3441.2,3441.1,3.04608361]
[1736977935804,6.240233,3441.2,3441.1,0.04608361]
[1736977935999,3.6371,3441.2,3440.2,2.77510547]
[1736977936196,6.54306,3441.2,3441.1,0.04599847]
[1736977936441,2.90616,3441.0,3440.3,0.7928]
[1736977936610,6.54306,3441.2,3441.1,0.04599847]
[1736977936818,2.90619,3441.0,3440.3,0.7928]
[1736977938939,2.90623,3440.9,3440.3,0.7928]
[1736977939251,2.90623,3440.9,3440.3,3.7928]
[1736977939751,0.55,3440.7,3440.0,0.7928]
[1736977939937,0.427631,3440.6,3440.0,0.7928]
[1736977940355,2.90661,3440.5,3440.0,0.7928]
[1736977940720,2.90665,3440.4,3440.0,0.7928]
[1736977941629,0.427631,3440.6,3440.0,0.7928]
[1736977941947,2.90655,3440.5,3440.0,0.7928]
[1736977942850,2.90655,3440.5,3439.2,0.7684]
[1736977942851,2.90693,3440.1,3439.2,0.7684]
[1736977943056,0.173,3440.0,3439.2,0.7684]
[1736977943204,0.173,3440.0,3439.2,6.67601]
[1736977943625,0.173,3440.0,3439.2,7.10801507]
[1736977943933,0.173,3440.0,3439.4,6.54350547]
[1736977944125,0.173,3440.0,3439.8,3.0]
[1736977944329,0.173,3440.0,3439.9,0.7684]
[1736977945423,0.173,3440.0,3439.7,0.7684]
[1736977946581,0.173,3440.0,3439.7,3.7684]
[1736977946783,0.173,3440.0,3439.7,5.26766567]
[1736977948288,0.173,3440.0,3439.7,14.02766567]
[1736977948582,0.173,3440.0,3439.8,0.7684]
[1736977949540,0.173,3440.0,3439.9,0.04528273]
[1736977950747,0.173,3440.0,3439.7,11.76]
[1736977950956,0.173,3440.0,3439.8,0.04538409]
[1736977951162,0.173,3440.0,3439.7,11.76]
[1736977951396,0.173,3440.0,3439.8,0.04538409]
[1736977951596,0.173,3440.0,3439.7,8.76]
[1736977951799,3.69842,3439.9,3439.7,8.76]
[1736977952303,2.90714,3439.8,3439.7,8.76]
[1736977953455,1.178442,3439.9,3439.2,3.0]
[1736977953660,2.90724,3439.7,3439.0,0.7684]
[1736977954824,3.6989,3439.3,3438.7,0.7684]
[1736977954992,0.7913,3439.3,3438.7,0.7684]
[1736977955531,2.90767,3439.2,3438.7,0.7684]
[1736977955681,0.7913,3439.3,3438.7,0.7684]
[1736977955876,2.90766,3439.2,3438.7,0.7684]
[1736977957079,0.7913,3439.3,3438.7,0.7684]
[1736977958179,3.45756,3439.4,3438.7,0.7684]
[1736977958377,3.0,3439.3,3438.7,0.7684]
[1736977959811,0.55,3439.4,3438.7,0.7684]
[1736977960184,3.55,3439.4,3438.7,0.7684]
[1736977961230,3.45749,3439.4,3438.7,0.7684]
[1736977962828,0.173,3439.3,3438.7,0.7684]
[1736977963197,3.91237,3439.3,3438.7,0.7684]
[1736977963400,2.90765,3439.2,3438.7,0.7684]
[1736977963735,2.90765,3439.2,3438.1,2.77510547]
[1736977963736,0.996245,3439.2,3438.0,0.794]
[1736977963954,2.90827,3438.5,3438.2,0.43163436]
[1736977964384,3.0,3438.6,3438.2,0.43163436]
[1736977964745,2.90816,3438.6,3438.3,0.04283396]
[1736977965133,2.90816,3438.6,3438.2,0.43163436]
[1736977965433,3.7399,3438.7,3438.4,0.04277514]
[1736977965736,1.20579,3438.7,3438.0,0.794]
[1736977965939,4.1139,3438.7,3438.0,0.794]
[1736977966081,4.1139,3438.7,3438.1,0.04317753]
[1736977966836,2.90816,3438.6,3438.1,0.04317753]
[1736977967832,0.173,3438.5,3438.1,0.04317753]
[1736977969537,2.9077,3439.2,3438.2,3.70247]
[1736977969701,3.08074,3439.1,3438.2,3.70247]
[1736977969935,0.55,3439.0,3438.3,0.04314515]
[1736977972070,2.90783,3439.0,3438.3,0.04314515]
[1736977972369,3.215913,3439.0,3438.3,0.04314515]
[1736977973338,0.858083,3439.0,3438.3,0.04314515]
[1736977973761,2.908,3438.8,3438.3,0.04314515]
[1736977974162,2.908,3438.8,3438.2,0.794]
[1736977974332,2.908,3438.8,3438.4,0.04308626]
[1736977974534,3.3819183,3438.8,3438.3,0.04314508]
[1736977974858,3.3819183,3438.8,3438.4,0.04308626]
[1736977975061,0.55,3438.7,3438.2,0.794]
[1736977975368,2.90817,3438.6,3438.5,0.04302744]
[1736977975676,2.90817,3438.6,3438.2,0.794]
[1736977975884,3.24637883,3438.6,3438.2,0.794]
[1736977976031,3.24637883,3438.6,3438.3,0.04314508]
[1736977976225,3.24637883,3438.6,3438.2,0.794]
[1736977976430,3.24637883,3438.6,3438.4,0.04308626]
[1736977976655,3.24637883,3438.6,3438.2,0.794]
[1736977976858,0.37202971,3438.5,3438.2,0.794]
[1736977978005,0.37202971,3438.5,3437.7,0.789]
[1736977979165,4.08038971,3438.5,3437.7,0.789]
[1736977979365,3.70836,3438.5,3437.7,0.789]
[1736977979564,3.70836,3438.5,3437.8,0.04343923]
[1736977980311,2.90875,3437.9,3437.8,0.04343923]
[1736977980518,3.87985,3437.9,3437.8,0.04343923]
[1736977980815,1.649943,3437.9,3436.8,5.39]
[1736977981020,2.9092,3437.4,3436.8,5.39]
[1736977981226,0.7981,3437.2,3436.8,5.39]
[1736977981524,3.70751,3437.2,3436.8,5.39]
[1736977982780,2.90945,3437.1,3436.8,5.39]
[1736977983191,0.7981,3437.2,3436.8,5.39]
[1736977983391,2.90967,3436.9,3436.5,0.43291046]
[1736977983613,0.173,3436.8,3436.5,0.43291046]
[1736977983995,0.173,3436.8,3436.4,0.78]
[1736977984737,0.173,3436.8,3436.4,1.688023]
[1736977984939,2.90888,3437.8,3436.9,5.39]
[1736977985245,0.173,3437.7,3437.2,2.90932]
[1736977985409,2.90853,3438.2,3437.2,2.90932]
[1736977985410,0.173,3437.6,3437.3,0.80908952]
[1736977985740,0.173,3437.6,3437.3,3.68922]
[1736977985909,0.173,3437.6,3437.4,0.368922]
[1736977986116,2.90859,3438.1,3437.4,0.368922]
[1736977986300,2.90879,3437.9,3437.3,0.78]
[1736977986497,2.90875,3437.9,3437.3,0.78]
[1736977986701,2.90885,3437.8,3437.3,0.78]
[1736977986945,3.69655,3437.8,3437.1,0.43151187]
[1736977987093,3.69655,3437.8,3437.0,0.8036]
[1736977987291,2.90897,3437.7,3437.0,0.8036]
[1736977987706,0.7877,3437.8,3437.0,0.8036]
[1736977988135,2.90877,3437.9,3437.1,0.61936]
[1736977988914,2.90884,3437.8,3437.1,0.61936]
[1736977990133,2.90884,3437.8,3437.1,6.00936]
[1736977991450,2.90884,3437.8,3437.1,5.39]
[1736977992402,2.90899,3437.7,3437.1,5.39]
[1736977992841,2.90911,3437.5,3437.1,5.39]
[1736977993043,0.55,3437.9,3437.1,5.39]
[1736977993253,0.7877,3437.4,3436.7,6.1936]
[1736977993549,2.90934,3437.2,3436.7,6.1936]
[1736977993701,0.369704,3437.2,3436.7,5.39]
[1736977993907,2.90918,3437.4,3436.8,0.8036]
[1736977994538,3.69655,3437.8,3436.9,0.0394345]
[1736977994700,2.90885,3437.8,3436.9,0.0394345]
[1736977995041,0.723,3437.7,3436.9,0.0394345]
[1736977995607,2.90902,3437.6,3436.9,0.0394345]
[1736977995832,3.272222,3437.6,3436.9,0.0394345]
[1736977996478,0.363202,3437.6,3436.9,0.0394345]
[1736977996682,2.90915,3437.5,3436.9,0.0394345]
[1736977996853,2.9092,3437.4,3436.9,0.0394345]
[1736977997186,2.90927,3437.3,3436.9,0.0394345]
[1736977997482,2.90962,3436.9,3436.7,5.39]
[1736977997835,2.90962,3436.9,3436.8,0.03952323]
[1736977998061,4.538282,3436.9,3436.8,0.03952323]
[1736977998283,4.538282,3436.9,3436.3,5.39]
[1736977998284,2.90976,3436.7,3436.3,5.39]
[1736977998446,0.173,3436.6,3436.3,5.39]
[1736977998653,2.91019,3436.2,3435.9,0.8036]
[1736977998883,2.91027,3436.2,3435.9,0.8036]
[1736977999437,0.55,3436.5,3435.9,0.8036]
[1736977999645,2.91029,3436.1,3435.9,0.8036]
[1736978000454,0.291029,3436.1,3435.6,6.1936]
[1736978000651,0.55,3436.2,3435.6,6.1936]
[1736978001052,3.46025,3436.2,3435.6,6.1936]
[1736978004275,0.55,3436.2,3435.6,6.1936]
[1736978004446,2.91045,3435.9,3435.6,5.39]
[1736978004774,2.91036,3436.0,3435.6,5.39]
[1736978004947,3.335166,3436.0,3435.6,5.39]
[1736978005149,2.9105,3435.9,3435.6,5.39]
[1736978005348,2.91055,3435.8,3435.6,5.39]
[1736978007351,2.91044,3435.9,3435.6,5.39]
[1736978007990,0.424806,3436.0,3435.6,5.39]
[1736978008393,0.173,3435.9,3435.8,5.39]
[1736978008697,0.173,3435.9,3435.8,6.1936]
[1736978009491,0.173,3435.9,3435.8,6.23360688]
[1736978010452,0.173,3435.9,3435.8,5.43000688]
[1736978014788,5.68462547,3437.0,3435.8,5.43000688]
[1736978014789,0.82,3436.6,3435.8,5.43000688]
[1736978014949,2.9097,3436.8,3435.9,1.59821124]
[1736978015153,0.173,3436.7,3435.9,0.7777]
[1736978015352,0.173,3436.7,3436.0,0.03983356]
[1736978015552,0.173,3436.6,3436.1,0.7777]
[1736978015989,0.173,3436.6,3436.2,0.03971577]
[1736978016563,0.82,3437.4,3436.3,0.7777]
[1736978016766,3.08226,3437.3,3436.4,5.39]
[1736978016966,2.90935,3437.2,3436.4,5.42959798]
[1736978017167,0.173,3437.1,3436.4,5.42959798]
[1736978022496,0.173,3437.0,3436.4,5.42959798]
[1736978022816,3.08251,3437.0,3436.4,5.42959798]
[1736978023110,0.173,3437.0,3436.4,5.42959798]
[1736978023472,3.08253,3437.0,3436.4,5.42959798]
[1736978023671,2.90981,3436.7,3436.4,5.42959798]
[1736978025970,2.90993,3436.5,3436.4,5.42959798]
[1736978029112,2.90993,3436.5,3436.4,0.03959798]
[1736978029426,2.90993,3436.5,3435.9,5.39]
[1736978029624,2.90993,3436.5,3436.4,0.03795171]
[1736978029786,2.9101,3436.3,3435.9,5.39]
[1736978030356,3.628935,3436.5,3435.9,5.39]
[1736978031316,2.90997,3436.5,3435.9,5.39]
[1736978035548,0.173,3436.0,3435.6,5.39]
[1736978036449,0.7682,3436.9,3435.9,0.7871]
[1736978036646,3.08274,3436.8,3435.9,0.7871]
[1736978036859,2.90985,3436.6,3435.9,0.7871]
[1736978039064,2.90985,3436.6,3436.0,0.43316701]
[1736978039510,0.56887351,3437.2,3436.3,3.56220547]
[1736978039812,0.173,3437.1,3436.8,0.7871]
[1736978040300,0.173,3437.1,3436.9,0.03639558]
[1736978040715,3.08244,3437.1,3436.9,0.03639558]
[1736978041006,0.308244,3437.0,3436.9,0.03639558]
[1736978041317,0.173,3437.1,3436.5,0.7871]
[1736978041504,2.90961,3436.9,3436.4,5.39]
[1736978042089,0.173,3437.1,3436.4,5.39]
[1736978042090,2.90988,3436.6,3436.4,5.39]
[1736978042613,3.67839,3436.2,3435.7,5.39]
[1736978042782,0.173,3436.1,3435.7,5.39]
[1736978042989,0.173,3436.0,3435.7,5.39]
[1736978043413,0.173,3436.0,3435.8,0.43314292]
[1736978044314,2.90978,3436.7,3435.9,0.7871]
[1736978044479,2.90951,3437.0,3436.1,0.7871]
[1736978044680,0.173,3436.9,3436.1,0.7871]
[1736978044923,0.173,3436.9,3436.1,3.72644992]
[1736978045140,0.173,3436.8,3436.5,0.7871]
[1736978045504,0.173,3436.8,3436.5,6.69699]
[1736978046629,0.173,3436.8,3436.6,0.43290988]
[1736978047917,0.173,3436.8,3436.7,0.43290988]
[1736978048116,0.613072,3436.8,3436.7,0.43290988]
[1736978049128,0.613072,3436.8,3436.4,5.39]
[1736978049528,2.90993,3436.5,3436.4,5.39]
[1736978050002,2.90993,3436.5,3436.0,5.39]
[1736978051021,0.7682,3436.7,3436.0,5.39]
[1736978051216,3.67798,3436.7,3436.0,5.39]
[1736978052305,3.67798,3436.7,3436.1,0.43327055]
[1736978052500,2.90987,3436.6,3436.1,0.43327055]
[1736978053337,2.90987,3436.6,3436.0,5.39]
[1736978054154,0.173,3436.5,3436.0,5.39]
[1736978054662,0.173,3436.5,3436.1,0.03441535]
[1736978055324,0.173,3436.5,3436.2,0.43382193]
[1736978055519,0.173,3436.4,3436.2,0.46817838]
[1736978055725,3.08308,3436.4,3436.2,0.46817838]
[1736978056975,3.08308,3436.4,3436.2,0.03435645]
[1736978057131,0.173,3436.4,3436.2,0.03435645]
[1736978057336,0.173,3436.4,3436.0,5.39]
[1736978057587,3.08302,3436.4,3436.3,0.03426768]
[1736978057762,3.391322,3436.4,3436.0,5.39]
[1736978058077,2.91011,3436.3,3436.0,5.39]
[1736978058445,2.91011,3436.3,3435.6,5.39]
[1736978058446,0.55,3436.3,3435.6,5.39]
[1736978058991,2.91028,3436.1,3435.6,5.39]
[1736978059352,2.91028,3436.1,3435.7,0.43405797]
[1736978060147,2.91012,3436.3,3435.8,0.43405797]
[1736978060763,0.173,3436.4,3435.9,0.7501]
[1736978060973,0.173,3436.4,3435.9,1.6985838]
[1736978061174,0.173,3436.3,3436.1,0.7501]
[1736978061396,0.173,3436.2,3436.1,0.7501]
[1736978062796,0.173,3436.2,3436.1,1.18415797]
[1736978062994,0.173,3436.2,3436.1,2.72195327]
[1736978063183,0.173,3436.2,3436.1,5.63222327]
[1736978063555,0.173,3436.2,3436.1,2.72195327]
[1736978063897,2.096,3437.2,3436.3,2.91007]
[1736978064102,0.173,3437.1,3436.4,3.7501]
[1736978064485,0.173,3437.1,3436.4,6.08253908]
[1736978065075,0.173,3437.1,3436.5,0.97642551]
[1736978065265,3.08243,3437.1,3436.5,0.97642551]
[1736978065601,0.173,3437.1,3436.5,0.97642551]
[1736978065800,2.90977,3436.7,3436.5,0.97642551]
[1736978066194,3.45977,3436.7,3436.6,0.65104555]
[1736978066891,3.68891,3436.9,3436.6,0.65104555]
[1736978067203,2.096,3437.2,3436.6,0.21698758]
[1736978067364,0.173,3436.8,3436.7,0.7501]
[1736978068267,0.173,3436.8,3436.7,1.18374108]
[1736978068492,2.096,3437.2,3436.7,1.18374108]
[1736978068677,0.173,3436.8,3436.7,1.18374108]
[1736978068885,0.173,3436.8,3436.7,1.40055767]
[1736978069266,2.096,3437.2,3436.7,1.9424658]
[1736978069464,0.173,3437.1,3436.8,0.03301801]
[1736978069668,0.173,3437.1,3436.7,1.9424658]
[1736978069868,0.173,3437.1,3436.8,0.03301374]
[1736978070111,0.173,3437.1,3436.7,1.9424658]
[1736978070312,0.173,3437.1,3436.9,0.03295487]
[1736978070575,0.173,3437.1,3436.9,0.21681659]
[1736978070814,0.173,3437.1,3437.0,0.032896]
[1736978071106,0.173,3437.1,3436.9,0.21681659]
[1736978071308,0.173,3437.1,3437.0,0.46653708]
[1736978071697,4.379555,3437.1,3437.0,0.46653708]
[1736978071900,4.929555,3437.1,3437.0,0.46653708]
[1736978072651,4.929555,3437.1,3437.0,0.43364108]
[1736978072797,2.90959,3436.9,3436.8,5.39]
[1736978073891,2.020135,3437.1,3436.8,5.39]
[1736978074144,2.90951,3437.0,3436.8,5.39]
[1736978075179,2.90959,3436.9,3436.8,5.39]
[1736978075348,3.6121625,3436.9,3436.8,5.39]
[1736978075495,4.1621625,3436.9,3436.8,5.39]
[1736978075692,2.91002,3436.4,3436.3,0.54163875]
[1736978075894,3.69982,3436.4,3436.3,0.54163875]
[1736978076143,1.3398,3436.8,3436.3,0.54163875]
[1736978076325,2.90994,3436.5,3436.0,0.54163875]
[1736978077093,2.90994,3436.5,3436.1,0.43386498]
[1736978077539,2.90994,3436.5,3436.1,0.65080067]
[1736978078050,2.90994,3436.5,3436.2,0.43386498]
[1736978078795,1.3398,3436.8,3436.2,0.43386498]
[1736978078995,0.20423725,3436.7,3436.2,0.43386498]
[1736978079202,0.20423725,3436.7,3435.9,5.39]
[1736978079747,0.173,3436.6,3435.9,5.39]
[1736978080548,2.91005,3436.4,3435.9,5.39]
[1736978080740,2.91005,3436.4,3436.0,0.43417792]
[1736978081817,0.173,3436.6,3436.1,0.43417792]
[1736978082145,2.91009,3436.4,3436.1,0.43417792]
[1736978082743,2.91009,3436.4,3435.9,5.39]
[1736978084102,0.7743,3436.3,3435.9,5.39]
[1736978084407,2.91023,3436.2,3436.0,0.43442299]
[1736978084714,2.91023,3436.2,3436.0,0.46431922]
[1736978085845,2.91023,3436.2,3436.1,0.43442299]
[1736978086050,3.85719,3436.6,3436.1,0.43442299]
[1736978086051,2.91004,3436.4,3436.1,0.43442299]
[1736978086233,2.91004,3436.4,3436.1,0.46426032]
[1736978086916,2.91004,3436.4,3436.1,0.02983733]
[1736978087116,2.91004,3436.4,3435.9,5.39]
[1736978087322,2.91004,3436.4,3436.2,0.02977843]
[1736978087524,2.91004,3436.4,3435.9,5.39]
[1736978087739,2.91004,3436.4,3436.3,0.02971954]
[1736978087929,2.91004,3436.4,3435.9,5.39]
[1736978088144,0.173,3436.6,3436.3,0.02971954]
[1736978088306,3.0829,3436.6,3436.0,0.43441519]
[1736978088653,3.0829,3436.6,3436.4,0.02984831]
[1736978088654,0.173,3436.6,3436.4,0.02984831]
[1736978088804,2.90993,3436.5,3436.0,0.43441519]
[1736978089000,0.173,3436.6,3436.1,5.39]
[1736978089444,2.90978,3436.7,3436.1,5.39]
[1736978089741,0.173,3436.6,3436.1,5.39]
[1736978090444,0.173,3436.6,3436.2,0.43444776]
[1736978090942,3.0829,3436.6,3436.2,0.43444776]
[1736978091533,3.0829,3436.6,3436.1,5.39]
[1736978093955,3.0829,3436.6,3436.2,0.4343699]
[1736978094151,2.90973,3436.8,3436.3,0.7563]
[1736978094354,0.173,3436.7,3436.3,0.7563]
[1736978094649,2.90957,3437.0,3436.4,5.39]
[1736978094855,5.57499162,3437.2,3436.4,5.8243699]
[1736978095024,0.173,3436.9,3436.5,7.1692487]
[1736978095211,0.173,3436.8,3436.5,7.1692487]
[1736978095414,0.173,3436.8,3436.7,0.7563]
[1736978095951,0.173,3436.8,3436.7,1.1906699]
[1736978097949,0.173,3436.8,3436.7,0.4343699]
[1736978099329,0.173,3436.8,3436.7,0.46369608]
[1736978100268,0.173,3436.8,3436.7,0.78562618]
[1736978101572,0.173,3436.8,3436.7,0.02932618]
[1736978101759,3.08268,3436.8,3436.5,5.39]
[1736978101964,3.08268,3436.8,3436.7,0.02941999]
[1736978102427,3.08268,3436.8,3436.5,5.39]
[1736978102618,3.08268,3436.8,3436.7,0.02941999]
[1736978102831,3.08268,3436.8,3436.6,0.02947887]
[1736978103039,3.08268,3436.8,3436.7,0.02941999]
[1736978103435,0.173,3436.8,3436.5,5.39]
[1736978103835,0.173,3436.8,3436.6,0.02947887]
[1736978104241,0.173,3436.8,3436.7,0.7563]
[1736978104442,0.173,3436.8,3436.7,1.19069289]
[1736978104765,2.096,3437.2,3436.7,1.21999348]
[1736978104972,0.173,3437.1,3436.8,0.7563]
[1736978105287,2.096,3437.2,3437.1,12.05572]
[1736978105471,2.269,3437.2,3437.1,17.78670445]
[1736978105674,2.269,3437.2,3437.1,17.81576956]
[1736978105839,2.096,3437.2,3437.1,17.81576956]
[1736978106046,2.269,3437.2,3437.1,17.81576956]
[1736978106905,2.269,3437.2,3437.1,18.25016245]
[1736978107078,2.90826,3438.5,3437.6,0.7563]
[1736978107242,0.463826,3438.4,3437.7,5.39]
[1736978107594,0.173,3438.3,3437.9,5.39]
[1736978107957,0.173,3438.3,3438.1,0.7563]
[1736978108146,2.90795,3438.9,3438.1,0.7563]
[1736978108347,2.90795,3438.9,3438.2,0.03044766]
[1736978108586,3.08099,3438.8,3438.2,0.03044766]
[1736978109292,0.173,3438.8,3438.2,0.03044766]
[1736978109599,2.90819,3438.6,3438.2,0.03044766]
[1736978109884,3.08102,3438.8,3438.2,0.03044766]
[1736978110790,2.90785,3439.0,3438.2,0.03044766]
[1736978110950,0.173,3438.9,3438.2,0.03044766]
[1736978111152,0.173,3438.9,3438.2,0.35582211]
[1736978111949,3.08093,3438.9,3438.2,0.35582211]
[1736978113026,2.90799,3438.8,3438.3,5.39]
[1736978113228,0.173,3438.9,3438.3,5.39]
[1736978113437,2.90816,3438.7,3438.4,0.02942199]
[1736978113629,0.173,3438.9,3438.4,0.02942199]
[1736978113924,2.90816,3438.6,3438.4,0.02942199]
[1736978114125,0.173,3438.9,3438.4,0.02942199]
[1736978114424,2.90824,3438.5,3438.4,0.02942199]
[1736978120769,2.90809,3438.7,3438.4,0.02942199]
[1736978120922,2.90809,3438.7,3438.3,5.39]
[1736978121124,2.90809,3438.7,3438.5,0.03234555]
[1736978121325,2.90809,3438.7,3438.3,5.39]
[1736978121738,0.173,3438.6,3438.3,5.39]
[1736978122021,0.173,3438.6,3438.4,0.03241908]
[1736978122361,0.173,3438.6,3438.3,5.39]
[1736978122658,0.173,3438.6,3438.5,0.03234555]
[1736978122964,0.173,3438.6,3438.3,5.39]
[1736978123164,0.173,3438.6,3438.5,0.03234555]
[1736978123370,0.173,3438.6,3438.3,5.39]
[1736978123866,0.173,3438.6,3438.4,0.03241908]
[1736978124025,0.173,3438.6,3438.4,0.78571908]
[1736978124527,0.173,3438.5,3438.4,0.78571908]
[1736978128435,2.90792,3438.9,3438.4,0.78571908]
[1736978128646,0.173,3438.5,3438.4,0.78571908]
[1736978129489,0.173,3438.5,3438.4,0.03241908]
[1736978130610,0.173,3438.5,3438.3,5.39]
[1736978130798,3.470048,3438.5,3438.4,0.03874962]
[1736978130995,0.8064,3438.4,3437.6,5.39]
[1736978131528,2.90885,3437.8,3437.6,5.39]
[1736978131895,3.71473,3438.4,3437.6,5.39]
[1736978132095,2.90867,3438.0,3437.6,5.39]
[1736978132327,2.90856,3438.2,3437.6,5.39]
[1736978132527,3.71474,3438.4,3437.7,0.7533]
[1736978132730,2.90834,3438.4,3437.7,0.7533]
[1736978132931,0.173,3438.3,3437.8,5.39]
[1736978133656,0.173,3438.3,3437.9,0.27083]
[1736978133820,0.173,3438.3,3437.9,1.257042]
[1736978134851,0.173,3438.3,3438.0,0.27083]
[1736978135583,0.173,3438.3,3438.2,0.7533]
[1736978136324,0.173,3438.3,3438.2,1.45789866]
[1736978137479,2.9014,3439.3,3438.3,6.1872]
[1736978137686,0.173,3439.2,3438.7,0.7972]
[1736978137828,0.173,3439.1,3438.7,0.7972]
[1736978138345,0.173,3439.0,3438.8,0.70459866]
[1736978139362,0.173,3439.0,3438.9,0.70459866]
[1736978142782,0.173,3439.0,3438.9,1.50179866]
[1736978142934,0.173,3439.0,3438.9,7.63277553]
[1736978145197,0.173,3439.0,3438.9,10.54067553]
[1736978146579,0.173,3439.0,3438.9,7.63277553]
[1736978153388,0.173,3439.0,3438.9,6.09459866]
[1736978155017,0.173,3439.0,3438.9,5.66083]
[1736978155896,3.08082,3439.0,3438.9,0.27083]
[1736978156096,3.89922,3439.0,3438.9,0.27083]
[1736978156787,3.72635,3438.9,3437.9,5.39]
[1736978156984,2.90834,3438.4,3437.9,5.39]
[1736978157285,0.8184,3438.3,3438.0,0.04257475]
[1736978157487,0.8184,3438.3,3438.0,0.31322762]
[1736978157814,0.8184,3438.3,3438.1,0.03822903]
[1736978158454,0.8184,3438.3,3438.2,0.27065287]
[1736978158607,0.8184,3438.3,3438.2,0.30879366]
[1736978160477,0.8184,3438.3,3438.2,0.03814079]
[1736978160889,0.8184,3438.3,3437.9,5.39]
[1736978161064,0.8184,3438.3,3438.2,0.03814079]
[1736978161224,0.8184,3438.3,3437.9,5.39]
[1736978161554,0.8184,3438.3,3438.2,0.03814079]
[1736978161760,0.8184,3438.3,3437.9,5.39]
[1736978162163,0.8184,3438.3,3438.0,0.03831727]
[1736978162458,0.8184,3438.3,3437.9,5.39]
[1736978162664,0.8184,3438.3,3438.0,0.30890956]
[1736978163440,2.90834,3438.4,3438.0,0.30890956]
[1736978163764,2.90834,3438.4,3438.1,0.27059229]
[1736978163968,0.7585,3438.5,3438.1,0.27059229]
[1736978164131,0.7585,3438.5,3438.2,0.03814079]
[1736978164661,3.66678,3438.5,3438.2,0.03814079]
[1736978165449,3.66678,3438.5,3437.9,5.39]